[Event "Qatar Masters 2024"]
[Site "Doha"]
[Date "2024.12.03"]
[Round "1.55"]
[White "Kunal, M.."]
[Black "Pham Tran Gia Phuc"]
[Result "1-0"]
[Annotator "TA"]
[ECO "B51"]
[WhiteElo "2291"]
[BlackElo "2445"]
[PlyCount "167"]
[EventDate "2024.11.24"]
[EventType "swiss"]
[EventCountry "QAT"]
[SourceTitle "playchess.com"]
[Source "ChessBase"]
[SourceQuality "1"]
[TimeControl "40/5400+30:1800+30"]

{[%evp 56,167,757,425,426,422,418,378,469,454,472,460,418,306,314,306,302,283,295,279,300,312,296,300,379,371,394,399,384,329,356,330,274,212,219,203,227,217,308,309,257,223,356,357,320,367,354,354,584,579,572,562,593,574,722,589,578,565,647,0,579,577,711,669,622,558,570,488,5769,564,533,411,569,566,559,558,583,583,774,453,449,426,297,0,523,0,632,627,977,967,4485,4527,1168,945,1012,941,12794,12742,29965,12797,29980,29981,29986,29987,29987,29988,29992,29985,29986,29985,29986,29986,29987,29987]} 1. e4 {[%emt 0:00:05]} c5 {[%emt 0:00:14]} 2. Nf3 {[%emt 0:00:12]} d6 {[%emt 0:00:15]} 3. Bb5+ {[%emt 0:00:23]} Nd7 {[%emt 0:00:09]} 4. a4 {[%emt 0:00:12]} Ngf6 {[%emt 0:00:13]} 5. Nc3 {[%emt 0:00:16]} g6 {[%emt 0:00:13]} 6. a5 {[%emt 0:00:27]} a6 {[%emt 0:00:41]} 7. Bc4 {[%emt 0:07:01]} Bg7 {[%emt 0:02:04]} 8. Bxf7+ {[%emt 0:01:00]} Kxf7 {[%emt 0:00:34]} 9. Ng5+ {[%emt 0:00:08]} Kg8 {[%emt 0:02:33]} 10. Ne6 {[%emt 0:04:15]} Qe8 {[%emt 0:00:08]} 11. Nc7 {[%emt 0:00:14]} Qf7 {[%emt 0:07:44]} 12. Nxa8 {[%emt 0:00:13]} b5 {[%emt 0:00:44]} 13. axb6 {[%emt 0:12:15]} Bb7 {[%emt 0:02:41]} 14. Qe2 {[%emt 0:02:12]} Nh5 {[%emt 0:08:05]} 15. Nc7 {[%emt 0:11:53]} Nf4 {[%emt 0:07:04]} 16. Qf1 {[%emt 0:03:52]} Nxb6 {[%emt 0:12:54]} 17. d3 {[%emt 0:07:08]} e5 {[%emt 0:07:23]} 18. g3 {[%emt 0:12:37]} Qxc7 {[%emt 0:02:36]} 19. gxf4 {[%emt 0:04:05]} d5 {[%emt 0:00:05]} 20. Qh3 {[%emt 0:01:33]} Qf7 {[%emt 0:06:32]} 21. f5 {[%emt 0:05:12]} d4 {[%emt 0:02:35]} 22. Na4 {[%emt 0:00:46]} Nxa4 {[%emt 0:01:29]} 23. Rxa4 {[%emt 0:01:09]} gxf5 {[%emt 0:00:07]} 24. Bh6 {[%emt 0:03:47]} Qg6 {[%emt 0:02:38]} 25. Bxg7 {[%emt 0:00:10]} Kxg7 {[%emt 0:00:04]} 26. Kf1 {[%emt 0:00:38]} Kf7 {[%emt 0:03:15]} 27. Rg1 {[%emt 0:01:11]} Qf6 {[%emt 0:00:26]} 28. Qh5+ {[%emt 0:00:49]} Ke6 {[%emt 0:00:42]} 29. Qxf5+ {[%emt 0:04:40]} Qxf5 {[%emt 0:02:20]} 30. exf5+ {[%emt 0:00:06]} Kf6 {[%emt 0:00:03]} 31. f3 {[%emt 0:02:44]} Rc8 {[%emt 0:00:47]} 32. Kf2 {[%emt 0:02:32]} Rc7 {[%emt 0:00:47]} 33. b3 {[%emt 0:01:07]} Kxf5 {[%emt 0:00:07]} 34. c4 {[%emt 0:09:01]} dxc3 {[%emt 0:01:17]} 35. Rc4 {[%emt 0:00:08]} Ke6 {[%emt 0:00:10]} 36. Ke3 {[%emt 0:02:59]} Rf7 {[%emt 0:03:43]} 37. Rf1 {[%emt 0:00:06]} (37. Rxc3 Rxf3+ 38. Ke2 e4) 37... Kd6 {[%emt 0:00:09]} 38. Rxc3 {[%emt 0:00:45]} Bd5 {[%emt 0:01:02]} 39. f4 {[%emt 0:01:04]} exf4+ {[%emt 0:00:26]} 40. Rxf4 {[%emt 0:00:10]} Re7+ {[%emt 0:03:31]} 41. Kd2 {[%emt 0:30:06]} Rg7 {[%emt 0:30:52]} 42. Ra4 {[%emt 0:00:00]} Rg2+ {[%emt 0:00:00]} 43. Ke3 {[%emt 0:00:00]} Rxh2 {[%emt 0:00:00]} 44. Ra5 {[%emt 0:00:00]} Rh3+ {[%emt 0:00:00]} 45. Kd2 {[%emt 0:00:00]} Rh2+ {[%emt 0:00:00]} 46. Kc1 {[%emt 0:00:00]} Rh1+ {[%emt 0:00:00]} (46... Bf7 $142 47. Rxa6+ (47. Raxc5 Bxb3 48. Rc6+ Kd5 $18) 47... Kd5) 47. Kb2 $18 {[%emt 0:00:00]} Rh2+ {[%emt 0:00:00]} 48. Ka3 {[%emt 0:00:00]} Rd2 {[%emt 0:00:00]} (48... Bc6 $142 49. Raxc5 (49. Rcxc5 Bb5 $16) 49... Bb5) 49. Rxa6+ $18 {[%emt 0:00:00]} (49. Rcxc5 Rxd3 50. Ka4 (50. Rxa6+ $2 Kxc5 51. Kb2 Rxb3+ 52. Kc2 Rh3 $19) 50... Bxb3+ 51. Kb4 Bd1 $14) 49... Ke5 {[%emt 0:00:00]} 50. Ra4 {[%emt 0:00:00]} Kd6 {[%emt 0:00:00]} 51. Rh4 {[%emt 0:00:00]} Ke5 $2 {[%emt 0:00:00]} (51... Rd1 {was worth a try.} 52. Rxh7 Rf1 53. Rh6+ Be6) 52. Rxc5 $18 {[%emt 0:00:00]} ({Less strong is} 52. Rxh7 Kd4 $18) 52... Rxd3 {[%emt 0:00:00]} 53. Rb5 {[%emt 0:00:00]} (53. Rxh7 Rxb3+ 54. Ka4 Rd3 $11) 53... Kd6 {[%emt 0:00:00]} 54. Rxh7 {[%emt 0:00:00]} Kc6 {[%emt 0:00:00]} 55. Rb8 {[%emt 0:00:00]} Rg3 {[%emt 0:00:00]} 56. Ka4 {[%emt 0:00:00]} Rg2 {[%emt 0:00:00]} 57. Ka3 {[%emt 0:00:00]} Rg3 $1 {[%emt 0:00:00]} 58. Rh6+ {[%emt 0:00:00]} Kc7 {[%emt 0:00:20]} 59. Rb5 {[%emt 0:00:00]} Bf7 {[%emt 0:00:05]} 60. Rf6 {[%emt 0:00:00]} Bg8 {[%emt 0:03:30]} 61. Rff5 {[%emt 0:00:25]} Kd6 {[%emt 0:00:27]} (61... Re3 $142 62. Rfc5+ Kd6) 62. Rb6+ {[%emt 0:00:56]} (62. Rg5 $142 Rxg5 63. Rxg5) 62... Kc7 $18 {[%emt 0:00:06]} 63. Rb4 {[%emt 0:00:04]} Be6 {[%emt 0:00:13]} 64. Rc5+ {[%emt 0:00:08]} Kd6 {[%emt 0:00:25]} 65. Rc1 {[%emt 0:00:06]} Bd5 {[%emt 0:02:24]} 66. Rb6+ {[%emt 0:00:09]} Kd7 {[%emt 0:00:06]} 67. Rd1 {[%emt 0:01:34]} Kc7 {[%emt 0:00:30]} 68. Rb4 {[%emt 0:00:06]} Kc6 {[%emt 0:01:14]} 69. Rc1+ $2 {[%emt 0:01:15]} (69. Ka4) 69... Kd6 $1 $18 {[%emt 0:00:25]} 70. Rb6+ {[%emt 0:00:20]} Kd7 {[%emt 0:00:05]} 71. Ka4 {[%emt 0:00:15]} Rg2 {[%emt 0:01:57]} 72. b4 {[%emt 0:00:29]} Ra2+ {[%emt 0:00:11]} 73. Kb5 {[%emt 0:00:07]} Bf3 {[%emt 0:00:05]} 74. Kc5 {[%emt 0:00:34]} Rh2 {[%emt 0:02:30]} 75. Rd6+ {[%emt 0:00:38]} Kc7 {[%emt 0:00:08]} 76. Rf6 {[%emt 0:00:45]} Bh1 {[%emt 0:00:12]} 77. Rf7+ {[%emt 0:00:29]} Kb8 {[%emt 0:00:07]} 78. b5 {[%emt 0:03:52]} Rh5+ {[%emt 0:00:42]} 79. Kb6 {[%emt 0:00:09]} Rh6+ {[%emt 0:00:17]} 80. Rc6 {[%emt 0:04:34]} Rh8 {[%emt 0:00:36]} 81. Rcf6 {[%emt 0:00:13]} Rc8 {[%emt 0:01:13]} 82. Rf8 {[%emt 0:00:10]} Bg2 {[%emt 0:00:10]} 83. Rxc8+ {[%emt 0:00:07]} Kxc8 {[%emt 0:00:02]} 84. Ka7 {[%emt 0:01:06]} 1-0

[Event "Qatar Masters 2024"]
[Site "Doha"]
[Date "2024.12.03"]
[Round "1.56"]
[White "Mamedov, Edgar"]
[Black "Nayak Rajesh"]
[Result "1-0"]
[Annotator "TA"]
[ECO "D38"]
[WhiteElo "2448"]
[BlackElo "2256"]
[PlyCount "69"]
[EventDate "2024.11.24"]
[EventType "swiss"]
[EventCountry "QAT"]
[SourceTitle "playchess.com"]
[Source "ChessBase"]
[SourceQuality "1"]
[TimeControl "40/5400+30:1800+30"]

{[%evp 18,69,37,30,27,9,8,0,0,-10,0,0,0,0,0,11,104,102,118,129,129,131,135,73,85,66,193,176,278,275,443,426,412,338,323,208,370,378,625,607,470,418,418,417,29957,29960,12820,12834,12820,12813,11464,11464,29978,1007]} 1. d4 {[%emt 0:00:12]} Nf6 {[%emt 0:00:47]} 2. c4 {[%emt 0:00:06]} e6 {[%emt 0:00:42]} 3. Nf3 {[%emt 0:00:14]} d5 {[%emt 0:00:40]} 4. Nc3 {[%emt 0:00:08]} Bb4 {[%emt 0:01:29]} 5. cxd5 {[%emt 0:00:39]} exd5 {[%emt 0:00:33]} 6. Bg5 {[%emt 0:00:09]} h6 {[%emt 0:01:32]} 7. Bh4 {[%emt 0:00:05]} g5 {[%emt 0:08:15]} 8. Bg3 {[%emt 0:00:15]} Ne4 {[%emt 0:00:12]} 9. Nd2 {[%emt 0:00:24]} Nxg3 {[%emt 0:03:33]} 10. hxg3 {[%emt 0:00:06]} c6 {[%emt 0:05:58]} 11. e3 {[%emt 0:00:41]} Bf5 {[%emt 0:02:27]} 12. Nb3 {[%emt 0:13:13][%cal Bd2b3,Bb3a5,Ba5b7,Bb7c5][%mdl 32]} Nd7 {[%emt 0:06:26]} 13. Bd3 {[%emt 0:01:00]} Bxd3 {[%emt 0:02:07]} 14. Qxd3 {[%emt 0:00:06]} Qe7 {[%emt 0:00:33]} 15. a3 {[%emt 0:04:03]} Bd6 {[%emt 0:00:33]} 16. Na5 {[%emt 0:16:08]} Nf6 {[%emt 0:03:24]} (16... Rb8 $11) 17. Qf5 $16 {[%emt 0:02:35][%cal Oa5b7]} Rb8 {[%emt 0:16:25] [#]} 18. Nxb7 $1 {[%emt 0:01:33]} Bc7 {[%emt 0:00:13] [#] Prevents b4.} 19. Nc5 $1 {[%emt 0:02:02]} Rxb2 {[%emt 0:01:35]} 20. O-O-O {[%emt 0:12:09]} (20. N3a4 $142 Rb5 21. Rc1) 20... Rb8 {[%emt 0:02:54]} 21. Kc2 $36 {[%emt 0:06:45][%mdl 2048] And now e4 would win. White has the initiative.} Bb6 {[%emt 0:11:20] [#]} (21... Kf8 $14) 22. e4 $1 $18 {[%emt 0:08:39]} Bxc5 {[%emt 0:05:22]} (22... Nxe4 $142 23. Rde1 Kf8 (23... Bxc5 $2 24. Nxe4 dxe4 25. Rxe4 $18)) 23. exd5 {[%emt 0:02:48]} Kf8 $2 {[%emt 0:02:42]} (23... Bxa3 $2 24. Rde1 Nxd5 (24... Rb2+ $2 25. Kd3 $18) 25. Nxd5 (25. Rxe7+ Nxe7 26. Qe5 Rb2+ 27. Kd3 O-O $18) 25... cxd5 (25... Rb2+ $2 26. Kc3 $18) 26. Rxe7+ Bxe7 27. Re1 $18 (27. Qxd5 Rd8 $18)) (23... Nxd5 {was called for.} 24. Rde1 (24. dxc5 Kf8 $18) 24... Bxd4) 24. Rhe1 {[%emt 0:02:51][%cal Od4c5]} ({Less strong is} 24. dxc5 Nxd5 25. Rhe1 (25. Nxd5 Qxc5+ 26. Kd2 Rd8 $17) 25... Qc7 (25... Qxc5 26. Rxd5 cxd5 27. Qe5 $18) 26. Nxd5 cxd5 27. Rxd5 Qa5 $18) 24... Qd8 {[%emt 0:01:26]} 25. dxc5 {[%emt 0:00:25] Active counter play!} cxd5 {[%emt 0:01:04]} 26. Qe5 {[%emt 0:08:26]} Rg8 $2 {[%emt 0:10:46]} (26... Kg7) 27. Nxd5 {[%emt 0:01:23]} Nxd5 $2 {[%emt 0:00:30]} (27... Ng4 28. Qd4 Qa5) 28. Rxd5 {[%emt 0:00:47]} Qc8 {[%emt 0:00:13] Black is weak on the dark squares} 29. Rh1 {[%emt 0:09:03]} Rg6 {[%emt 0:03:41]} 30. Rb1 {[%emt 0:03:05]} Rgb6 {[%emt 0:03:09]} (30... Ra8 $18 31. Qh8+ Ke7 32. Re1+ Re6 33. Qxh6 (33. Rxe6+ fxe6 34. Qh7+ Ke8 $18) 33... Qc6 (33... Rxe1 $2 {is the wrong capture.} 34. Qd6+ Ke8 35. Rxg5 $18)) 31. Rxb6 {[%emt 0:01:00]} axb6 {[%emt 0:00:14]} 32. Qh8+ {[%emt 0:01:39]} Ke7 {[%emt 0:00:08]} 33. Re5+ {[%emt 0:00:33]} Kd7 {[%emt 0:00:11]} 34. Qf6 {[%emt 0:00:04]} Qf8 {[%emt 0:00:45] Inhibits Qd6+.} 35. c6+ {[%emt 0:01:45]} (35. Rd5+ $142 Kc7 36. Re5 Kd7 37. cxb6 Qd6 38. Qxf7+ Kc6 39. Re6 Rxb6 40. Rxd6+ Kxd6 41. Kc3) 1-0

[Event "Qatar Masters 2024"]
[Site "Doha"]
[Date "2024.12.03"]
[Round "1.57"]
[White "Bhagat Kush"]
[Black "Sahib Singh"]
[Result "0-1"]
[Annotator "TA"]
[ECO "B51"]
[WhiteElo "2270"]
[BlackElo "2438"]
[PlyCount "84"]
[EventDate "2024.11.24"]
[EventType "swiss"]
[EventCountry "QAT"]
[SourceTitle "playchess.com"]
[Source "ChessBase"]
[SourceQuality "1"]
[TimeControl "40/5400+30:1800+30"]

{[%evp 14,84,22,22,34,13,56,62,54,13,75,56,80,81,117,140,125,142,128,115,147,140,170,85,216,212,218,207,218,232,217,213,214,157,163,163,147,170,171,-256,-291,-293,-290,-29986,-29967,-29987,-29967,-29969,-29970,-29970,-29971,-29971,-29972,-29972,-29973,-29973,-29974,-29944,-7445,-12850,-858,-790,-753,-2217,-1813,-2010,-2018,-1909,-1570,-1238,-1231,-29979,-29980]} 1. e4 {[%emt 0:00:04]} c5 {[%emt 0:00:03]} 2. Nf3 {[%emt 0:00:11]} d6 {[%emt 0:00:03]} 3. Bb5+ {[%emt 0:00:11]} Nc6 {[%emt 0:00:19]} 4. O-O {[%emt 0:00:24]} Bd7 {[%emt 0:00:05]} 5. Re1 {[%emt 0:01:02]} Nf6 {[%emt 0:01:12]} 6. c3 {[%emt 0:02:16]} a6 {[%emt 0:01:29]} 7. Bf1 {[%emt 0:00:52]} Bg4 {[%emt 0:09:16]} 8. d4 {[%emt 0:01:10]} Bxf3 {[%emt 0:04:32]} 9. gxf3 {[%emt 0:01:05][%cal Bg2f3,Bf3f4,Bf4e5,Be5e6][%mdl 32]} g6 {[%emt 0:00:09]} 10. d5 {[%emt 0:17:15]} Nb8 {[%emt 0:01:15]} 11. f4 {[%emt 0:00:44] Qb3 is in the air} Bg7 {[%emt 0:00:57]} (11... Bh6 $1 $11) 12. Qb3 {[%emt 0:00:43]} b5 {[%emt 0:08:01][%cal Bb7b5,Bb5a4][%mdl 32]} 13. a4 {[%emt 0:04:18]} bxa4 {[%emt 0:00:57]} 14. Qb7 {[%emt 0:01:30]} Nbd7 {[%emt 0:00:06]} 15. e5 $1 {[%emt 0:00:18]} (15. Rxa4 $6 O-O $11) 15... dxe5 {[%emt 0:10:35]} 16. fxe5 {[%emt 0:00:43]} Ng4 {[%emt 0:00:17]} 17. e6 $36 {[%emt 0:20:35][%mdl 2048] White is in control.} (17. Rxa4 Rb8 (17... Ndxe5 18. d6 $16) 18. Qxa6 Ngxe5 $11 (18... Ndxe5 19. Nd2 $11)) 17... Nde5 {[%emt 0:09:39]} 18. d6 {[%emt 0:01:25]} (18. Rxa4 $2 Rb8 19. Qa7 (19. exf7+ $2 Kf8 $19) 19... Nf3+ 20. Kh1 Nxe1 $19) (18. exf7+ $1 $18 Kxf7 19. d6 (19. Rxa4 Qd6 $17)) 18... exd6 {[%emt 0:15:56]} (18... fxe6 $16 19. dxe7 (19. Rxa4 Rb8 $14) 19... Qd5 20. Qxd5 (20. Bxa6 Nf3+ 21. Kf1 Ngxh2+ 22. Ke2 Rxa6 $17) (20. Bg2 Qxb7 21. Bxb7 Rb8 $11) 20... exd5) 19. Bg2 $1 $18 {[%emt 0:08:45]} (19. Bxa6 Rxa6 (19... fxe6 20. Qxg7 Qh4 21. Bb5+ Kd8 22. Bg5+ Qxg5 23. Qxh8+ $18) 20. Rxe5 Nxe5 $17) (19. exf7+ $6 Kf8 $14) (19. Rxa4 $6 Rb8 (19... fxe6 $2 20. Qxg7 Rf8 21. Rxg4 $18) 20. exf7+ (20. Qxa6 Nf3+ 21. Kh1 Nxf2+ 22. Kg2 Nxe1+ $15) 20... Kf8 $16) 19... Rc8 {[%emt 0:02:59][%cal Ba8c8,Bc8c7,Bc7f7][%mdl 32] Against Bc6+} 20. h3 {[%emt 0:08:22][%cal Bh2h3,Bh3g4][%mdl 32]} (20. Rxa4 Rc7 21. Qxa6 O-O $16) (20. exf7+ $6 Kf8 $16) 20... Rc7 {[%emt 0:07:20]} 21. Qxa6 {[%emt 0:00:46]} O-O {[%emt 0:00:25]} 22. hxg4 {[%emt 0:02:03]} fxe6 {[%emt 0:00:33]} 23. Rxa4 {[%emt 0:06:52]} Rcf7 {[%emt 0:06:40][%cal Od8h4]} 24. Be3 {[%emt 0:01:52]} Qh4 {[%emt 0:01:46][%cal Rf7f2] and ...Rxf2 should not be overlooked} 25. Re2 $1 {[%emt 0:14:02]} (25. Qxd6 Rxf2 26. Nd2 (26. Qxe6+ $2 Kh8 $19) 26... Qg3 27. Bxf2 (27. Qxe6+ $2 Kh8 $19) 27... Qxf2+ 28. Kh1 Qxe1+ 29. Kh2 Nxg4+ 30. Rxg4 Be5+ $19) (25. g5 c4 26. Qb6 (26. Qxd6 $2 Rxf2 $19) (26. Re2 $2 Qg4 $19) 26... Nd3 $11) 25... c4 {[%emt 0:00:41] [#]} 26. Qxd6 $4 {[%emt 0:02:12][%mdl 8192]} (26. Rxc4 $1 $18 {was the only winning move. aiming for Ra4.} Nxc4 27. Qxc4) 26... Qxg4 $19 {[%emt 0:00:06]} (26... Rd8 $2 27. Qxd8+ (27. Qxe6 Rd1+) 27... Qxd8 28. Ra8 $18) 27. Kf1 {[%emt 0:00:34]} Rd7 {[%emt 0:00:07]} 28. Qb6 $2 {[%emt 0:03:34]} (28. Qxf8+ $19 Kxf8 29. Nd2) 28... Rd1+ {[%emt 0:00:05]} 29. Re1 {[%emt 0:00:03]} Rxe1+ {[%emt 0:00:35]} 30. Kxe1 {[%emt 0:00:02]} Nd3+ {[%emt 0:00:05]} 31. Kd2 {[%emt 0:00:06] [#]} Rxf2+ $3 {[%emt 0:06:07][%mdl 512]} 32. Bxf2 {[%emt 0:00:08]} Bh6+ {[%emt 0:00:02]} 33. Be3 {[%emt 0:01:49]} Qxg2+ {[%emt 0:00:05]} 34. Kd1 {[%emt 0:00:03] [#]} Qf1+ $1 {[%emt 0:00:23]} (34... Qxb2 35. Qxe6+ Kg7 36. Ra7+ (36. Qe7+ Kh8 37. Ra8+ Qb8 38. Rxb8+ Bf8 39. Rxf8#)) (34... Nxb2+ 35. Kc1 Nd3+ (35... Nxa4 36. Qxe6+ Kg7 37. Qe7+ Kg8 38. Qe8+ Bf8 39. Qxa4 $18) (35... Bxe3+ 36. Qxe3 Nd3+ 37. Kd1 $11) 36. Kd1 Nb2+ 37. Kc1 Nd3+ 38. Kd1 Nb2+ $11) 35. Kd2 {[%emt 0:00:45]} Qf2+ {[%emt 0:00:04]} ({Inferior is} 35... Qxb1 36. Qxe6+ (36. Bxh6 Qc1+ 37. Ke2 Qc2+ 38. Bd2 Qxa4 $11) 36... Kh8 37. Qf6+ (37. Bxh6 Qc1+ 38. Ke2 Qe1+ 39. Kf3 Qxe6 $17) 37... Kg8 38. Ra8+) 36. Kd1 {[%emt 0:00:03]} Nxb2+ {[%emt 0:00:04]} (36... Qxe3 37. Qxe3 Bxe3 38. Ke2 $18 (38. Rxc4 $2 {is the wrong capture.} Nxb2+ 39. Ke2 Nxc4 $19)) (36... Bxe3 $142 37. Qb8+ Kg7 38. Rxc4 Nxb2+ (38... Qxb2 $2 39. Qc7+ Kf6 40. Qd8+ Ke5 41. Qxd3 $18) 39. Qxb2 Qxb2) 37. Qxb2 {[%emt 0:00:38]} Qxb2 {[%emt 0:00:03]} 38. Ra8+ {[%emt 0:00:19]} Kf7 {[%emt 0:00:05]} 39. Ra7+ {[%emt 0:00:31]} Kf6 {[%emt 0:00:05]} 40. Bxh6 {[%emt 0:01:08]} Qxb1+ {[%emt 0:00:04]} 41. Ke2 {[%emt 0:30:04]} Qe4+ {[%emt 0:30:10]} 42. Kf2 {[%emt 0:00:11]} Qh4+ {[%emt 0:00:04]} 0-1

[Event "Qatar Masters 2024"]
[Site "Doha"]
[Date "2024.12.03"]
[Round "1.58"]
[White "Gan-Erdene, Sugar"]
[Black "Daakshin Arun"]
[Result "1-0"]
[Annotator "TA"]
[ECO "B90"]
[WhiteElo "2437"]
[BlackElo "2286"]
[PlyCount "61"]
[EventDate "2024.11.24"]
[EventType "swiss"]
[EventCountry "QAT"]
[SourceTitle "playchess.com"]
[Source "ChessBase"]
[SourceQuality "1"]
[TimeControl "40/5400+30:1800+30"]

{[%evp 10,61,23,18,13,20,18,14,23,-7,20,-11,-9,-17,100,86,103,66,138,126,208,221,205,218,232,237,315,310,304,316,330,329,336,341,321,312,318,258,315,308,394,417,508,419,413,393,573,586,1525,1402,1577,1545,29982,6496]} 1. e4 {[%emt 0:00:05]} c5 {[%emt 0:00:05]} 2. Nf3 {[%emt 0:00:08]} d6 {[%emt 0:00:05]} 3. d4 {[%emt 0:00:07]} cxd4 {[%emt 0:00:04]} 4. Nxd4 {[%emt 0:00:08]} Nf6 {[%emt 0:00:07][%cal Bg8f6,Bf6d7,Bd7e5][%mdl 32]} 5. Nc3 {[%emt 0:00:06]} a6 {[%emt 0:00:13]} 6. Nb3 {[%emt 0:00:36]} e6 {[%emt 0:00:27]} 7. g4 {[%emt 0:00:32][%cal Bg2g4,Bg4g5][%mdl 32]} b5 {[%emt 0:00:06]} 8. Bg2 {[%emt 0:00:21][%cal Oe4e5]} Bb7 {[%emt 0:00:07]} 9. g5 {[%emt 0:00:14]} Nfd7 {[%emt 0:00:05]} (9... b4 $5) 10. f4 {[%emt 0:01:20]} h6 {[%emt 0:00:36]} 11. f5 {[%emt 0:02:41]} exf5 {[%emt 0:11:16]} (11... b4 $1 $11) 12. Qe2 $36 {[%emt 0:00:13][%mdl 2048] Keeping Black busy.} Ne5 {[%emt 0:23:42]} 13. exf5 {[%emt 0:04:10]} Bxg2 {[%emt 0:03:26]} ({Black should play} 13... Nbc6 $14) 14. Qxg2 {[%emt 0:00:06]} Nbd7 {[%emt 0:02:33]} (14... Nbc6 $16) 15. Bf4 $18 {[%emt 0:17:38]} hxg5 {[%emt 0:07:00]} 16. Bxg5 {[%emt 0:00:45]} f6 {[%emt 0:01:25]} 17. Bf4 {[%emt 0:02:07][%cal Bg5f4,Bf4g3,Bg3f2][%mdl 32]} Rh4 {[%emt 0:07:38]} 18. Nd5 {[%emt 0:02:39][%cal Bc3d5,Bd5f4,Bf4g6][%mdl 32]} (18. Bg3 Rc4 19. O-O-O Rac8 $18) 18... Rc8 {[%emt 0:12:10]} 19. O-O-O {[%emt 0:05:55] Nd4 would now be deadly.} Kf7 {[%emt 0:04:36]} 20. Kb1 {[%emt 0:02:28]} Kg8 {[%emt 0:08:10]} 21. Nd4 {[%emt 0:01:53]} Qe8 {[%emt 0:03:32]} 22. Bg3 {[%emt 0:07:25]} Rh7 {[%emt 0:02:25]} 23. Nf4 {[%emt 0:02:19]} Qf7 {[%emt 0:03:51]} 24. Nde6 {[%emt 0:02:52]} Nc4 {[%emt 0:01:29]} 25. Bf2 {[%emt 0:02:24] Prevents Ne3.} d5 {[%emt 0:04:20]} 26. Qxd5 {[%emt 0:01:50]} Bd6 {[%emt 0:02:44]} 27. Ng6 {[%emt 0:03:30]} Nde5 {[%emt 0:00:55]} (27... Nf8 {is a better defense.} 28. Rhg1 Rxh2) 28. Bc5 {[%emt 0:09:30]} Bxc5 {[%emt 0:00:21]} 29. Qxc5 {[%emt 0:00:22]} ({Less strong is} 29. Nxc5 Re8 $16) 29... Re8 {[%emt 0:00:51]} 30. Nd8 {[%emt 0:01:28]} Nd7 {[%emt 0:00:30]} 31. Qc7 {[%emt 0:00:20]} 1-0

[Event "Qatar Masters 2024"]
[Site "Doha"]
[Date "2024.12.03"]
[Round "1.59"]
[White "Fandi, Mazen."]
[Black "Tahbaz, Arash"]
[Result "0-1"]
[Annotator "TA"]
[ECO "B08"]
[WhiteElo "2160"]
[BlackElo "2432"]
[PlyCount "84"]
[EventDate "2024.11.24"]
[EventType "swiss"]
[EventCountry "QAT"]
[SourceTitle "playchess.com"]
[Source "ChessBase"]
[SourceQuality "1"]
[TimeControl "40/5400+30:1800+30"]

{[%evp 10,84,25,35,35,23,34,39,42,33,39,39,70,33,42,27,47,25,35,17,25,39,43,10,55,0,0,0,0,0,0,0,0,0,0,0,0,-262,-273,-272,-262,-254,-270,-307,-293,-291,-285,-278,-279,-293,-277,-403,-403,-395,-388,-398,-401,-398,-401,-426,-403,-463,-463,-461,-454,-610,-595,-671,-696,-29984,-29985,-29987,-29988,-29988,-29987,-29987,-29988]} 1. e4 {[%emt 0:00:06]} g6 {[%emt 0:01:00]} 2. d4 {[%emt 0:01:36]} Bg7 {[%emt 0:00:06]} 3. Nf3 {[%emt 0:01:08]} d6 {[%emt 0:00:11]} 4. Nc3 {[%emt 0:00:20]} Nf6 {[%emt 0:00:09]} 5. Bd3 {[%emt 0:01:40]} O-O {[%emt 0:00:06]} 6. O-O {[%emt 0:00:18]} Nbd7 {[%emt 0:05:01]} 7. Qe2 {[%emt 0:03:24]} e5 {[%emt 0:00:09]} 8. dxe5 {[%emt 0:00:47]} dxe5 {[%emt 0:00:05]} 9. Bc4 {[%emt 0:01:02]} c6 {[%emt 0:03:10]} 10. a4 {[%emt 0:01:12]} h6 {[%emt 0:01:47]} 11. b4 {[%emt 0:03:33]} Nh5 {[%emt 0:04:13]} 12. Rd1 {[%emt 0:10:04]} Qf6 {[%emt 0:03:00]} 13. a5 {[%emt 0:05:43]} Nf4 {[%emt 0:23:44]} 14. Qe3 {[%emt 0:00:42]} b5 {[%emt 0:00:06]} 15. Bf1 {[%emt 0:01:46]} Re8 {[%emt 0:09:47]} 16. g3 {[%emt 0:06:23][%cal Oc1b2]} g5 {[%emt 0:05:23][%cal Of6g6]} 17. gxf4 {[%emt 0:11:24]} (17. Bb2 $14) 17... exf4 $11 {[%emt 0:00:19]} 18. Qd4 {[%emt 0:00:08] Strongly threatening Bb2.} Qe7 {[%emt 0:05:12]} 19. Qd2 {[%emt 0:01:11]} Qxb4 {[%emt 0:05:40]} 20. Ra3 {[%emt 0:03:43]} Qe7 {[%emt 0:08:31] Hoping for ...b4.} 21. Ne2 {[%emt 0:06:20]} b4 {[%emt 0:05:41]} 22. Rb3 {[%emt 0:09:25]} Nc5 {[%emt 0:00:24]} 23. Rxb4 $2 {[%emt 0:06:38][%mdl 8192] [#]} (23. Qxb4 $1 $11 {and White stays safe.} Nxb3 24. Qxe7 Rxe7 25. Rd8+ Bf8 26. cxb3 (26. Ba3 c5 $11)) 23... Bg4 $1 $19 {[%emt 0:04:13]} 24. Bg2 {[%emt 0:16:59]} Nxe4 {[%emt 0:00:37]} 25. Rxe4 {[%emt 0:00:29]} ({Wrong is} 25. Qe1 $2 Nc3 26. Nxc3 Qxb4 $19) 25... Qxe4 {[%emt 0:00:05]} 26. Nfd4 {[%emt 0:00:52]} f3 {[%emt 0:02:41]} 27. Ng3 {[%emt 0:00:43] [#]} Qxd4 $1 {[%emt 0:00:25]} 28. Qxd4 {[%emt 0:00:13]} Bxd4 {[%emt 0:00:05]} 29. Rxd4 {[%emt 0:00:16]} fxg2 {[%emt 0:01:52]} 30. Rxg4 {[%emt 0:00:12]} (30. Kxg2 $142 Be6 31. h4) 30... Re1+ {[%emt 0:00:05]} 31. Kxg2 {[%emt 0:00:05]} Rxc1 {[%emt 0:00:03][%mdl 4096] Endgame KRR-KRN} 32. Rc4 {[%emt 0:00:43]} Ra1 {[%emt 0:01:21]} 33. Rc5 {[%emt 0:01:33]} Rb8 {[%emt 0:00:50]} 34. c4 {[%emt 0:00:27]} Re8 {[%emt 0:03:33]} 35. Kf3 {[%emt 0:03:03]} Re6 {[%emt 0:00:29]} 36. Nf5 {[%emt 0:00:05]} Ra3+ {[%emt 0:00:53]} 37. Ne3 {[%emt 0:00:43]} Kg7 {[%emt 0:01:24]} 38. Kg4 {[%emt 0:00:57]} Kg6 {[%emt 0:00:41] ( -> ...Raxe3)} 39. h4 {[%emt 0:00:33] [#]} f5+ $1 {[%emt 0:00:25]} 40. Rxf5 {[%emt 0:00:26]} (40. Kf3 f4) 40... Re4+ {[%emt 0:00:10]} 41. Kf3 {[%emt 0:30:12] [#]} Raxe3+ $1 {[%emt 0:30:09][%mdl 512]} 42. fxe3 {[%emt 0:00:11]} Kxf5 {[%emt 0:00:04]} 0-1